bitfinex/quotes_BTCUSD_20240712
["timestamp","ask_amount","ask_price","bid_price","bid_amount"]
[1720780700206,0.00827,57181.0,57180.0,1.68761849]
[1720780703440,0.00827,57181.0,57180.0,1.62761849]
[1720780703924,0.00827,57181.0,57180.0,1.68761849]
[1720780705545,0.00827,57181.0,57180.0,2.03739049]
[1720780706603,0.00827,57181.0,57180.0,2.23739049]
[1720780707841,0.00827,57181.0,57180.0,2.54239049]
[1720780708333,0.00827,57181.0,57180.0,2.89216249]
[1720780708968,0.00827,57181.0,57180.0,2.92726249]
[1720780709735,0.00827,57181.0,57180.0,3.01326249]
[1720780709941,0.00827,57181.0,57180.0,3.15862326]
[1720780710139,0.00827,57181.0,57180.0,3.01326249]
[1720780710342,0.00827,57181.0,57180.0,3.36303449]
[1720780710548,0.0142484,57185.0,57184.0,2.047616]
[1720780710745,0.0142484,57185.0,57184.0,2.86394537]
[1720780710951,0.0142484,57185.0,57184.0,2.96394537]
[1720780711374,0.00827,57187.0,57186.0,1.947557]
[1720780711634,0.00827,57188.0,57187.0,0.944593]
[1720780711840,0.00827,57188.0,57187.0,2.15143]
[1720780712067,0.00827,57188.0,57187.0,2.501159]
[1720780712670,0.00827,57188.0,57187.0,2.64650774]
[1720780712898,0.00827,57188.0,57187.0,2.81392753]
[1720780713101,0.00827,57188.0,57187.0,2.82792753]
[1720780713299,0.0059522,57208.0,57192.0,2.599294]
[1720780713866,0.0059522,57208.0,57192.0,2.74463087]
[1720780714043,0.0059522,57208.0,57192.0,2.44463087]
[1720780714266,0.0059522,57208.0,57192.0,2.52448616]
[1720780714601,0.0059522,57208.0,57192.0,2.62448616]
[1720780714808,0.0059522,57208.0,57192.0,2.52448616]
[1720780715195,0.0059522,57208.0,57192.0,2.62448616]
[1720780715401,0.0059522,57208.0,57192.0,2.83848616]
[1720780715597,0.0059522,57208.0,57192.0,2.69314929]
[1720780715824,0.0059522,57208.0,57192.0,2.85248596]
[1720780716048,0.0059522,57208.0,57192.0,2.20278696]
[1720780716248,0.1147522,57208.0,57192.0,2.05745029]
[1720780716891,0.2895552,57208.0,57192.0,2.05745029]
[1720780717090,0.174804,57207.0,57192.0,2.05745029]
[1720780717473,0.174807,57206.0,57192.0,2.05745029]
[1720780717668,0.174804,57207.0,57192.0,2.05745029]
[1720780717864,0.1147522,57208.0,57192.0,2.05745029]
[1720780718221,0.2895532,57208.0,57192.0,2.05745029]
[1720780719372,0.1147522,57208.0,57192.0,2.05745029]
[1720780719574,0.2895542,57208.0,57192.0,1.95745029]
[1720780719838,0.2895542,57208.0,57192.0,2.05745029]
[1720780720021,0.30786774,57208.0,57192.0,2.05745029]
[1720780720768,0.13306574,57208.0,57192.0,2.05745029]
[1720780720972,0.13306574,57208.0,57192.0,2.06511426]
[1720780721180,0.02426574,57208.0,57192.0,2.06511426]
[1720780721542,0.0059522,57208.0,57192.0,2.06511426]
[1720780721896,0.0059522,57208.0,57192.0,2.26511426]
[1720780722019,0.0059522,57208.0,57192.0,2.06511426]
[1720780722221,0.0059522,57208.0,57192.0,2.26511426]
[1720780722836,0.0059522,57208.0,57192.0,2.71481326]
[1720780723036,0.0059522,57208.0,57207.0,1.097567]
[1720780723259,0.0059522,57208.0,57207.0,1.32539187]
[1720780723469,0.0059522,57208.0,57207.0,1.73499887]
[1720780723666,0.0059522,57208.0,57207.0,1.67499887]
[1720780724278,0.0059522,57208.0,57207.0,1.53009887]
[1720780724679,0.0059522,57208.0,57207.0,1.32509887]
[1720780724838,0.0059522,57208.0,57207.0,1.32909887]
[1720780725444,0.0059522,57208.0,57207.0,1.33509887]
[1720780725646,0.1147522,57208.0,57207.0,1.33509887]
[1720780725999,0.0059522,57208.0,57207.0,1.33509887]
[1720780727070,0.0059522,57208.0,57207.0,1.312274]
[1720780728456,0.0067822,57208.0,57207.0,1.312274]
[1720780728663,0.0067822,57208.0,57207.0,1.86862701]
[1720780728865,0.0067822,57208.0,57207.0,2.07362701]
[1720780729721,0.0067822,57208.0,57207.0,2.06962701]
[1720780729887,0.0067822,57208.0,57207.0,2.23386441]
[1720780730114,0.0067822,57208.0,57207.0,2.18786441]
[1720780730306,0.0067822,57208.0,57207.0,1.55005741]
[1720780731027,0.0067822,57208.0,57207.0,0.78734341]
[1720780731218,0.0067822,57208.0,57207.0,0.10469601]
[1720780731520,0.01404876,57208.0,57207.0,0.10469601]
[1720780731742,0.01404876,57208.0,57207.0,0.09269601]
[1720780731942,0.01404876,57208.0,57207.0,0.28149901]
[1720780732144,0.01404876,57208.0,57207.0,0.37957111]
[1720780732275,0.01404876,57208.0,57207.0,0.98071301]
[1720780732478,0.01404897,57208.0,57207.0,0.98071301]
[1720780732728,0.0067822,57208.0,57207.0,1.46882001]
[1720780732933,0.0067822,57208.0,57207.0,1.63905741]
[1720780733130,0.0067822,57208.0,57207.0,1.46882001]
[1720780733343,0.0067822,57208.0,57207.0,0.98071301]
[1720780733542,0.01404883,57208.0,57207.0,0.98071301]
[1720780734108,0.01404883,57208.0,57207.0,0.63110601]
[1720780734514,0.01404883,57208.0,57207.0,0.10669601]
[1720780734720,0.01404883,57208.0,57207.0,0.02804601]
[1720780735354,0.01404883,57208.0,57207.0,0.10669601]
[1720780735557,0.01404883,57208.0,57207.0,0.09269601]
[1720780735800,0.0067822,57208.0,57207.0,0.09269601]
[1720780735934,0.0067822,57208.0,57207.0,0.02804601]
[1720780735935,0.01404918,57208.0,57207.0,0.02804601]
[1720780736135,0.01404918,57208.0,57207.0,0.01404601]
[1720780736358,0.01404918,57208.0,57207.0,0.02804601]
[1720780736560,0.18884918,57208.0,57207.0,0.02804601]
[1720780736771,0.18884918,57208.0,57207.0,0.01404601]
[1720780737604,0.88805118,57208.0,57207.0,0.02804601]
[1720780739351,0.8880514,57208.0,57207.0,0.02804601]
[1720780739900,1.48144584,57208.0,57207.0,0.02804601]
[1720780740299,1.3464524,57208.0,57207.0,0.02804601]
[1720780740721,1.3464524,57208.0,57207.0,0.01404601]
[1720780741245,0.65485966,57208.0,57207.0,0.01404601]
[1720780741683,0.65486041,57208.0,57207.0,0.01404601]
[1720780741920,0.65486041,57208.0,57207.0,0.01704601]
[1720780742029,0.64759246,57208.0,57207.0,0.01704601]
[1720780742258,0.65486057,57208.0,57207.0,0.01704601]
[1720780742862,1.35406257,57208.0,57207.0,0.01704601]
[1720780743312,1.35406257,57208.0,57207.0,0.01404601]
[1720780743719,1.35406257,57208.0,57207.0,0.02104601]
[1720780744117,1.23848037,57208.0,57207.0,4.601e-05]
[1720780744539,1.23948037,57208.0,57207.0,0.00504601]
[1720780744742,1.23948037,57208.0,57207.0,4.601e-05]
[1720780744960,1.23848065,57208.0,57207.0,4.601e-05]
[1720780745186,1.23848065,57208.0,57207.0,0.00204601]
[1720780745947,1.23848065,57208.0,57207.0,0.00504601]
[1720780748344,1.23121226,57208.0,57207.0,0.00504601]
[1720780748538,1.23848049,57208.0,57207.0,0.00504601]
[1720780750689,1.78808149,57208.0,57207.0,0.00304601]
[1720780751098,1.78908149,57208.0,57207.0,4.601e-05]
[1720780751513,1.96487388,57208.0,57207.0,0.00104601]
[1720780751893,2.13522154,57208.0,57207.0,4.601e-05]
[1720780752156,2.13522154,57208.0,57207.0,0.00104601]
[1720780752400,1.96498445,57208.0,57207.0,0.00104601]
[1720780753074,0.2,57203.0,57195.0,0.00306353]
[1720780753282,0.2,57203.0,57188.0,0.1352]
[1720780753283,0.174858,57189.0,57188.0,0.1352]
[1720780753485,0.174857,57190.0,57189.0,0.07865]
[1720780753690,0.18212653,57190.0,57189.0,0.16376435]
[1720780753891,0.18212653,57190.0,57189.0,0.08511435]
[1720780754101,0.18212653,57190.0,57189.0,0.16376435]
[1720780754339,0.18212653,57190.0,57189.0,0.36861008]
[1720780754340,0.00726953,57190.0,57189.0,0.36861008]
[1720780754560,0.00726953,57190.0,57189.0,0.86242708]
[1720780754798,0.00726953,57190.0,57189.0,0.51271008]
[1720780755267,0.00726953,57190.0,57189.0,0.52371008]
[1720780755508,0.00726953,57190.0,57189.0,0.17408773]
[1720780755962,0.00726953,57190.0,57189.0,0.18808773]
[1720780756225,0.00726953,57190.0,57189.0,0.014]
[1720780756226,0.88154653,57190.0,57189.0,0.014]
[1720780756482,0.88154653,57190.0,57189.0,0.024]
[1720780756946,0.88154653,57190.0,57189.0,0.014]
[1720780757374,0.524584,57188.0,57187.0,0.000913]
[1720780757584,0.00726953,57188.0,57187.0,0.000913]
[1720780757809,0.00726953,57188.0,57187.0,0.0233293]
[1720780758277,0.00726943,57188.0,57187.0,0.1667293]
[1720780758686,0.00726943,57188.0,57187.0,0.144313]
[1720780760312,0.00726943,57188.0,57187.0,0.155313]
[1720780760606,0.00726943,57188.0,57187.0,0.144313]
[1720780760840,0.00726943,57188.0,57187.0,0.157313]
[1720780761020,0.00726943,57188.0,57187.0,0.156313]
[1720780761223,0.00726943,57188.0,57187.0,0.170313]
[1720780761865,0.00726968,57188.0,57187.0,0.170313]
[1720780762288,0.174861,57188.0,57187.0,0.170313]
[1720780762536,0.18213073,57188.0,57187.0,0.170313]
[1720780763294,0.53185373,57188.0,57187.0,0.170313]
[1720780763493,0.53185373,57188.0,57187.0,0.026913]
[1720780764644,0.88157673,57188.0,57187.0,0.026913]
[1720780766921,1.23129973,57188.0,57187.0,0.026913]
[1720780767059,0.88157673,57188.0,57187.0,0.0268479]
[1720780767263,1.23129973,57188.0,57187.0,0.0268479]
[1720780768022,1.23129973,57188.0,57187.0,0.0128479]
[1720780768363,1.23129973,57188.0,57187.0,0.0198479]
[1720780768841,1.23129973,57188.0,57187.0,0.0078479]
[1720780768972,1.23229973,57188.0,57187.0,0.0138479]
[1720780771900,1.23230087,57188.0,57187.0,0.0138479]
[1720780772398,1.2323008,57188.0,57187.0,0.0138479]
[1720780775208,1.22503,57188.0,57187.0,0.0138479]
[1720780775416,1.23230077,57188.0,57187.0,0.0138479]
[1720780775823,1.27480027,57188.0,57187.0,0.0138479]
[1720780776403,1.23230077,57188.0,57187.0,0.0138479]
[1720780778644,1.23230062,57188.0,57187.0,0.0138479]
[1720780781153,1.22503,57188.0,57187.0,0.0138479]
[1720780782708,1.23230065,57188.0,57187.0,0.0138479]
[1720780784355,1.05743965,57188.0,57187.0,0.0138479]
[1720780784554,1.23230065,57188.0,57187.0,0.0138479]
[1720780785767,1.22503,57188.0,57187.0,0.0138479]
[1720780790425,1.23230086,57188.0,57187.0,0.0138479]
[1720780792814,1.23313086,57188.0,57187.0,0.0138479]
[1720780793788,1.23313092,57188.0,57187.0,0.0138479]
[1720780795194,1.78285392,57188.0,57187.0,0.0138479]
[1720780796159,1.78185392,57188.0,57187.0,0.0008479]
[1720780796545,1.58185392,57188.0,57187.0,0.0008479]
[1720780797142,0.524758,57169.0,57168.0,0.14816353]
[1720780797366,0.524758,57169.0,57168.0,0.1451]
[1720780797367,0.18218992,57169.0,57168.0,0.1451]
[1720780797983,0.18212581,57169.0,57168.0,0.1451]
[1720780798187,0.18212581,57169.0,57168.0,0.20176124]
[1720780798400,0.18312581,57169.0,57168.0,0.21576124]
[1720780798610,0.18312581,57169.0,57168.0,0.22976124]
[1720780799066,0.18312581,57169.0,57168.0,0.30841124]
[1720780800576,0.00827092,57169.0,57168.0,0.30841124]
[1720780800775,0.0082717,57169.0,57168.0,0.30841124]
[1720780801139,0.001,57169.0,57168.0,0.30841124]
[1720780801273,0.00827172,57169.0,57168.0,0.30841124]
[1720780801674,0.00827172,57169.0,57168.0,0.91857848]
[1720780801916,0.00083,57188.0,57178.0,0.06]
[1720780801917,0.174881,57182.0,57178.0,0.06]
[1720780802133,0.174881,57182.0,57180.0,0.0604]
[1720780802332,0.174881,57182.0,57181.0,0.0797]
[1720780802543,0.174881,57182.0,57181.0,0.1424]
[1720780802795,0.174881,57182.0,57181.0,0.172695]
[1720780804338,0.524641,57182.0,57181.0,0.1424]
[1720780804844,0.174881,57182.0,57181.0,0.1474]
[1720780805045,0.174881,57182.0,57181.0,0.08566259]
[1720780805247,0.174881,57182.0,57181.0,0.08066259]
[1720780805664,0.174881,57182.0,57181.0,0.08966259]
[1720780805869,0.174881,57182.0,57181.0,0.09966259]
[1720780806316,0.50715351,57187.0,57182.0,0.07865]
[1720780806317,0.50715551,57187.0,57182.0,0.07865]
[1720780806531,0.50715551,57187.0,57183.0,0.0657]
[1720780806532,0.174871,57185.0,57183.0,0.0657]
[1720780808227,0.0088383,57188.0,57185.0,0.0627]
[1720780808446,0.0088383,57188.0,57182.0,0.0849]
[1720780808447,0.00083,57188.0,57187.0,0.0627]
[1720780808657,0.175691,57188.0,57187.0,0.0627]
[1720780809282,0.00083,57188.0,57187.0,0.0627]
[1720780809724,0.00083,57188.0,57187.0,0.1424]
[1720780809918,0.00809979,57188.0,57187.0,0.1424]
[1720780810139,0.00809979,57188.0,57187.0,0.216966]
[1720780810795,0.00809979,57188.0,57187.0,0.215966]
[1720780811261,0.00809979,57188.0,57187.0,0.220966]
[1720780811677,0.00809979,57188.0,57187.0,0.1504]
[1720780811891,0.53268379,57188.0,57187.0,0.009]
[1720780812098,0.88240679,57188.0,57187.0,0.009]
[1720780812425,1.23212979,57188.0,57187.0,0.009]
[1720780813260,1.38961041,57188.0,57187.0,0.009]
[1720780813458,1.23212979,57188.0,57187.0,0.009]
[1720780813848,1.2321305,57188.0,57187.0,0.009]
[1720780814043,1.38959443,57188.0,57187.0,0.009]
[1720780814194,1.2321305,57188.0,57187.0,0.009]
[1720780814409,1.38959012,57188.0,57187.0,0.009]
[1720780816415,0.8824075,57188.0,57187.0,0.0876]
[1720780816821,0.88240718,57188.0,57187.0,0.0876]
[1720780817227,0.88240715,57188.0,57187.0,0.0876]
[1720780818402,0.00810015,57188.0,57187.0,0.1527]
[1720780820671,0.00809986,57188.0,57187.0,0.1527]
[1720780822074,0.00809986,57188.0,57187.0,0.23135]
[1720780824116,0.00809959,57188.0,57187.0,0.8747038]
[1720780824346,0.00809959,57188.0,57187.0,1.5741618]
[1720780824549,0.15735149,57198.0,57196.0,0.081]
[1720780824759,0.025,57205.0,57204.0,0.334462]
[1720780824898,0.03226707,57205.0,57204.0,0.89128246]
[1720780825132,0.03226641,57205.0,57204.0,0.98892214]
[1720780825323,0.17702043,57226.0,57204.0,0.98892214]
[1720780825324,0.174754,57223.0,57217.0,0.1457]
[1720780825531,0.174754,57223.0,57218.0,0.00306353]
[1720780825532,0.00726638,57222.0,57218.0,0.00306353]
[1720780825726,0.174754,57223.0,57218.0,0.00306353]
[1720780825727,0.00726638,57221.0,57218.0,0.00306353]
[1720780825933,0.00726638,57220.0,57218.0,0.00306353]
[1720780826149,0.00726638,57219.0,57218.0,0.00306353]
[1720780827214,0.00726634,57219.0,57218.0,0.00306353]
[1720780827649,0.96300134,57219.0,57218.0,0.00306353]
[1720780827833,0.52431,57218.0,57217.0,0.005]
[1720780828038,0.53157663,57218.0,57217.0,0.005]
[1720780828250,0.174774,57217.0,57212.0,0.313737]
[1720780828455,0.00726663,57216.0,57213.0,0.00306353]
[1720780828664,0.18204263,57216.0,57213.0,0.00306353]
[1720780828882,0.00726663,57215.0,57213.0,0.00306353]
[1720780829148,0.00726663,57214.0,57213.0,0.00306353]
[1720780830261,0.00726663,57214.0,57213.0,0.08171353]
[1720780830703,0.00726658,57214.0,57213.0,0.08871353]
[1720780830905,0.00726658,57214.0,57213.0,0.17831353]
[1720780831083,0.00726658,57214.0,57213.0,0.17131353]
[1720780831283,0.00726658,57214.0,57213.0,0.15925]
[1720780831717,0.00726658,57214.0,57213.0,0.356035]
[1720780832135,0.00726658,57214.0,57213.0,0.467585]
[1720780832543,0.18284642,57219.0,57214.0,0.174781]
[1720780832795,0.349517,57222.0,57217.0,0.253423]
[1720780832796,0.00726633,57218.0,57217.0,0.253423]
[1720780833007,0.00726633,57218.0,57217.0,0.174773]
[1720780833587,0.00726633,57218.0,57216.0,0.25648853]
[1720780833803,0.00726633,57217.0,57216.0,0.17783853]
[1720780834046,0.00726626,57217.0,57216.0,0.00306353]
[1720780834228,0.00726626,57217.0,57216.0,0.17783953]
[1720780834372,0.00726626,57217.0,57216.0,0.602978]
[1720780835076,0.00726626,57217.0,57216.0,0.616978]
[1720780835462,0.00816698,57222.0,57220.0,0.00306353]
[1720780835664,0.174757,57222.0,57221.0,0.0657]
[1720780835890,0.00726624,57222.0,57221.0,0.0657]
[1720780836335,0.00726624,57222.0,57221.0,0.063993]
[1720780837282,0.00726621,57222.0,57221.0,0.063993]
[1720780838130,0.00726621,57222.0,57221.0,0.077993]
[1720780838339,0.18202321,57222.0,57221.0,0.014]
[1720780838544,0.00726621,57222.0,57221.0,0.014]
[1720780838958,0.00726621,57222.0,57221.0,0.693033]
[1720780839167,0.002,57229.0,57228.0,0.602868]
[1720780839373,0.002,57229.0,57228.0,1.093947]
[1720780841164,0.003,57229.0,57228.0,1.093947]
[1720780841357,0.003,57229.0,57228.0,1.107947]
[1720780841558,0.002,57229.0,57228.0,1.107947]
[1720780841765,0.002,57229.0,57228.0,1.093947]
[1720780841955,0.002,57229.0,57228.0,1.121947]
[1720780842539,0.002,57229.0,57228.0,1.26444234]
[1720780843814,0.002,57229.0,57228.0,1.121947]
[1720780844246,0.002,57229.0,57228.0,1.471426]
[1720780844651,0.002,57229.0,57228.0,1.121947]
[1720780845103,0.002,57229.0,57228.0,0.772468]
[1720780845472,0.002,57229.0,57228.0,1.121947]
[1720780846304,0.002,57229.0,57228.0,0.772468]
[1720780847592,0.27527934,57236.0,57232.0,0.07865]
[1720780847727,0.174721,57234.0,57232.0,0.07865]
[1720780848765,0.174721,57234.0,57232.0,0.09065]
[1720780849168,0.174721,57234.0,57232.0,0.10465]
[1720780849366,0.174721,57234.0,57232.0,0.1816961]
[1720780850148,0.174724,57233.0,57232.0,0.026]
[1720780850566,0.174724,57233.0,57232.0,0.09265]
[1720780850746,0.174722,57234.0,57232.0,0.09265]
[1720780850943,0.174722,57234.0,57233.0,0.00957135]
[1720780851152,0.174722,57234.0,57233.0,0.0626]
[1720780851574,0.17472,57235.0,57234.0,0.0809]
[1720780851794,1.223068,57233.0,57232.0,0.028]
[1720780852000,1.23033255,57233.0,57232.0,0.028]
[1720780852206,1.23033255,57233.0,57224.0,0.15605]
[1720780852207,0.174744,57227.0,57224.0,0.15605]
[1720780852414,0.174746,57226.0,57224.0,0.07865]
[1720780852821,0.174746,57226.0,57223.0,0.07865]
[1720780853026,0.174746,57226.0,57220.0,0.252163]
[1720780853027,0.174749,57225.0,57220.0,0.15605]
[1720780853236,0.0735,57235.0,57220.0,0.0774]
[1720780853237,0.16734997,57234.0,57220.0,0.0774]
[1720780853464,0.16734997,57234.0,57209.0,0.2646]
[1720780853465,0.524275,57222.0,57221.0,0.00306353]
[1720780853663,0.174773,57217.0,57216.0,0.06306353]
[1720780854065,0.174773,57217.0,57216.0,0.00306353]
[1720780854245,0.174776,57216.0,57215.0,0.07865]
[1720780855437,0.524328,57216.0,57215.0,0.07865]
[1720780855596,0.524328,57216.0,57215.0,0.10665]
[1720780855793,0.87388,57216.0,57215.0,0.10665]
[1720780856025,1.3457738,57216.0,57215.0,0.028]
[1720780856197,1.42384034,57216.0,57215.0,0.028]
[1720780856396,1.30149854,57216.0,57215.0,0.028]
[1720780856658,1.30419854,57216.0,57215.0,0.028]
[1720780857155,1.3041991,57216.0,57215.0,0.028]
[1720780857367,1.7767511,57216.0,57215.0,0.028]
[1720780857576,1.9469885,57216.0,57215.0,0.014]
[1720780857776,1.9469885,57216.0,57215.0,0.015]
[1720780857777,2.1469885,57216.0,57215.0,0.015]
[1720780858002,2.1469885,57216.0,57215.0,0.001]
[1720780858237,2.1469885,57216.0,57215.0,0.003]
[1720780858452,2.1469885,57216.0,57215.0,0.002913]
[1720780858650,2.1489885,57216.0,57215.0,0.000913]
[1720780859089,2.1469885,57216.0,57215.0,0.000913]
[1720780859520,2.4985405,57216.0,57215.0,0.000913]
[1720780860283,2.4912734,57216.0,57215.0,0.000913]
[1720780860488,2.49854169,57216.0,57215.0,0.000913]
[1720780860708,2.4912734,57216.0,57215.0,0.000913]
[1720780860889,2.1283043,57216.0,57215.0,0.000913]
[1720780861090,2.15089283,57216.0,57215.0,0.000913]
[1720780861895,1.80134083,57216.0,57215.0,0.000913]
[1720780862248,1.79864083,57216.0,57215.0,0.000913]
[1720780862449,1.60484083,57216.0,57215.0,0.000913]
[1720780862652,1.224127,57211.0,57210.0,0.08511435]
[1720780862876,0.174794,57210.0,57209.0,0.0601]
[1720780863077,0.88124006,57210.0,57209.0,0.0601]
[1720780863539,0.88124006,57210.0,57209.0,0.160435]
[1720780863540,0.00726806,57210.0,57209.0,0.160435]
[1720780863742,0.000587,57211.0,57210.0,0.07865]
[1720780863956,0.349589,57210.0,57209.0,0.0601]
[1720780864164,0.88123917,57210.0,57209.0,0.0601]
[1720780864383,0.873972,57210.0,57209.0,0.0601]
[1720780864631,0.874032,57206.0,57205.0,0.0781]
[1720780865427,0.524419,57206.0,57205.0,0.0781]
[1720780865854,0.524419,57206.0,57205.0,0.0851]
[1720780867002,0.524419,57206.0,57205.0,0.0781]
[1720780867424,0.524419,57206.0,57205.0,0.0941]
[1720780867783,0.524419,57206.0,57205.0,0.0851]
[1720780868150,0.524419,57206.0,57205.0,0.0911]
[1720780868357,0.524419,57206.0,57205.0,0.0891]
[1720780868810,0.000587,57211.0,57210.0,0.07865]
[1720780869013,0.000587,57211.0,57210.0,0.30626435]
[1720780869149,0.000587,57211.0,57210.0,0.48105835]
[1720780869353,0.000587,57211.0,57210.0,0.91401914]
[1720780869778,0.000587,57211.0,57210.0,1.26360814]
[1720780870067,0.000587,57211.0,57210.0,1.67319714]
[1720780870452,0.000587,57211.0,57210.0,1.52982535]
[1720780870816,0.000587,57211.0,57210.0,0.22115]
[1720780871017,0.000587,57211.0,57210.0,0.1565]
[1720780871394,0.000587,57211.0,57210.0,0.1695]
[1720780871972,0.874544,57211.0,57210.0,0.013]
[1720780872273,0.88181079,57211.0,57210.0,0.013]
[1720780872715,0.88181171,57211.0,57210.0,0.013]
[1720780872942,0.88181171,57211.0,57210.0,0.027]
[1720780873158,0.88181163,57211.0,57210.0,0.027]
[1720780873389,1.23139463,57211.0,57210.0,0.027]
[1720780874246,1.23139463,57211.0,57210.0,0.013]
[1720780874531,1.23139463,57211.0,57210.0,0.027]
[1720780875563,0.88181163,57211.0,57210.0,0.027]
[1720780875907,1.23139463,57211.0,57210.0,0.002]
[1720780876172,1.23139478,57211.0,57210.0,0.002]
[1720780876747,1.23139478,57211.0,57210.0,0.1408]
[1720780876748,0.00785478,57211.0,57210.0,0.1408]
[1720780877158,0.00785478,57211.0,57210.0,0.1802252]
[1720780877361,0.00785478,57211.0,57210.0,0.1408]
[1720780877537,0.53222878,57211.0,57210.0,0.1408]
[1720780877946,0.88181178,57211.0,57210.0,0.063]
[1720780878506,0.88181178,57211.0,57210.0,0.002]
[1720780879508,0.88181156,57211.0,57210.0,0.002]
[1720780882813,0.88181158,57211.0,57210.0,0.002]
[1720780883382,0.88181162,57211.0,57210.0,0.002]
[1720780883736,1.35453338,57211.0,57210.0,0.002]
[1720780884156,1.23139462,57211.0,57210.0,0.002]
[1720780884960,1.23139462,57211.0,57210.0,0.004]
[1720780885310,1.23139462,57211.0,57210.0,0.002]
[1720780885727,1.23139502,57211.0,57210.0,0.006]
[1720780886138,1.35453453,57211.0,57210.0,0.006]
[1720780886341,1.23139503,57211.0,57210.0,0.006]
[1720780889506,1.224127,57211.0,57210.0,0.002]
[1720780889703,1.23139511,57211.0,57203.0,0.00306353]
[1720780889910,0.524437,57204.0,57203.0,0.00306353]
[1720780890110,0.53170511,57204.0,57203.0,0.00306353]
[1720780890312,0.53170511,57204.0,57202.0,0.0636]
[1720780890313,0.174816,57203.0,57202.0,0.0636]
[1720780890558,0.18208411,57203.0,57202.0,0.0636]
[1720780891539,0.53171611,57203.0,57202.0,0.0636]
[1720780891732,0.53271611,57203.0,57202.0,0.0736]
[1720780891938,0.53271611,57203.0,57202.0,0.0856]
[1720780891939,0.53371611,57203.0,57202.0,0.0856]
[1720780892138,0.97158222,57203.0,57202.0,0.0856]
[1720780892340,0.53371611,57203.0,57202.0,0.086513]
[1720780892734,0.53271611,57203.0,57202.0,0.074513]
[1720780893084,0.5327163,57203.0,57202.0,0.074513]
[1720780893233,0.5317163,57203.0,57202.0,0.064513]
[1720780893453,0.53171635,57203.0,57202.0,0.153163]
[1720780893686,0.53271635,57203.0,57202.0,0.153163]
[1720780894083,0.18308435,57203.0,57202.0,0.153163]
[1720780894319,0.18308435,57203.0,57202.0,0.68962]
[1720780894320,0.00926835,57203.0,57202.0,0.68962]
[1720780894522,0.00926835,57203.0,57202.0,0.420582]
[1720780895465,0.00926835,57203.0,57202.0,1.529496]
[1720780895703,0.001417,57211.0,57210.0,0.07865]
[1720780895920,0.001417,57211.0,57210.0,1.17933635]
[1720780896330,0.001417,57211.0,57210.0,1.52892535]
[1720780896544,0.001417,57211.0,57210.0,1.68781789]
[1720780896963,0.001417,57211.0,57210.0,1.60270354]
[1720780897161,0.001417,57211.0,57210.0,1.66270354]
[1720780897578,0.002417,57211.0,57210.0,1.67670354]
[1720780898159,0.002417,57211.0,57210.0,1.69070354]
[1720780900817,0.002417,57211.0,57210.0,1.63070354]
[1720780900962,0.002417,57211.0,57210.0,1.471811]
[1720780901158,0.002417,57211.0,57210.0,0.24825]
[1720780901413,0.002417,57211.0,57210.0,0.1696]
[1720780901561,0.526791,57211.0,57210.0,0.094]
[1720780901776,0.177208,57211.0,57210.0,0.094]
[1720780901968,0.176621,57211.0,57210.0,0.094]
[1720780902194,0.00183,57211.0,57210.0,0.17265]
[1720780902610,0.00183,57211.0,57210.0,0.15865]
[1720780902611,0.00083,57211.0,57210.0,0.15865]
[1720780903082,0.00083,57211.0,57210.0,0.16665]
[1720780903285,0.00083,57211.0,57210.0,0.2426662]
[1720780903647,0.00083,57211.0,57210.0,0.2286662]
[1720780904153,0.00083,57211.0,57210.0,0.2386662]
[1720780905266,0.175621,57211.0,57210.0,0.018]
[1720780905470,1.22437,57211.0,57210.0,0.018]
[1720780905765,0.00083,57211.0,57210.0,0.018]
[1720780906007,0.175621,57211.0,57210.0,0.018]
[1720780906132,0.175621,57211.0,57210.0,0.09665]
[1720780906526,0.175621,57211.0,57210.0,0.018]
[1720780906684,0.525204,57211.0,57210.0,0.018]
[1720780907504,0.00083,57211.0,57210.0,0.09665]
[1720780907832,0.00083,57211.0,57210.0,0.757133]
[1720780908023,0.00083,57211.0,57210.0,1.456311]
[1720780908794,0.00083,57211.0,57210.0,1.506311]
[1720780909225,0.00083,57211.0,57210.0,1.6905484]
[1720780909425,0.00083,57211.0,57210.0,1.6825484]
[1720780909800,0.00083,57211.0,57210.0,1.6965484]
[1720780910233,0.00083,57211.0,57210.0,1.6825484]
[1720780911202,0.00083,57211.0,57210.0,1.6965484]
[1720780911331,0.00083,57211.0,57210.0,2.0461374]
[1720780912558,0.00083,57211.0,57210.0,1.6365484]
[1720780913333,0.00083,57211.0,57210.0,1.6965484]
[1720780913530,0.00083,57211.0,57210.0,1.6365484]
[1720780914756,0.00083,57211.0,57210.0,1.466311]
[1720780915281,0.00083,57211.0,57210.0,1.116722]
[1720780918053,0.00083,57211.0,57210.0,0.767133]
[1720780922712,0.00083,57211.0,57210.0,0.827133]
[1720780922914,0.00083,57211.0,57210.0,0.767133]
[1720780923073,0.00083,57211.0,57210.0,1.176722]
[1720780923480,0.00083,57211.0,57210.0,1.3293542]
[1720780923681,0.00083,57211.0,57210.0,1.6789432]
[1720780926249,0.00083,57236.0,57231.0,0.063]
[1720780926453,0.00083,57236.0,57235.0,0.253368]
[1720780926668,0.00083,57236.0,57235.0,0.95224]
[1720780926874,0.00083,57236.0,57235.0,0.602804]
[1720780927098,0.00083,57236.0,57233.0,0.428096]
[1720780927272,0.00083,57236.0,57235.0,0.253368]
[1720780927427,0.00283,57236.0,57235.0,0.253368]
[1720780928049,0.00083,57236.0,57235.0,0.602804]
[1720780929974,0.00083,57236.0,57235.0,0.611804]
[1720780930207,0.00083,57236.0,57235.0,0.625804]
[1720780930392,0.00083,57236.0,57235.0,0.616804]
[1720780930652,0.00083,57236.0,57235.0,0.630804]
[1720780931342,0.00083,57236.0,57235.0,1.57504382]
[1720780931987,0.00083,57236.0,57235.0,1.56104382]
[1720780932871,0.0059884,57243.0,57242.0,0.799939]
[1720780933125,0.0059884,57243.0,57242.0,1.149332]
[1720780933372,0.0059884,57243.0,57242.0,2.69784555]
[1720780933610,0.0059884,57243.0,57242.0,3.04723855]
[1720780933851,0.00827,57246.0,57245.0,1.927267]
[1720780934092,0.00827,57246.0,57245.0,2.088017]
[1720780934356,0.00827,57246.0,57245.0,1.915716]